Cogmind - Beta 13 @@@ ROGUE MODE // 2024.07.12 @ 16:49:58 Player: TheGreatPlup Result: Destroyed by G-34 Mercenary with Small Laser Performance ------------- Evolutions (0) 0 Regions Visited (1) 200 Robots Destroyed (4) 20 Value Destroyed (149) 149 Prototype IDs (0) 0 Alien Tech Used (0) 0 Bonus (0) 0 TOTAL SCORE: 369 Bonus ------- None Cogmind --------- Core Integrity 0/250 Matter 224/450 Energy 160/160 System Corruption 0% Temperature Cool (6) Movement Core (800) Ox15 Location -10/Materials Parts ------- > --- POWER (1) -------- Light Nuclear Core > --- PROPULSION (2) --- (None) > --- UTILITY (2) ------ High-capacity Storage Unit Large Matter Pod > --- WEAPON (2) ------- (None) > --- INVENTORY (20) --- (None) Peak State ------------ > --- POWER ------------ Light Nuclear Core > --- PROPULSION ------- Aluminum Leg > --- UTILITY ---------- High-capacity Storage Unit Large Matter Pod > --- WEAPON ----------- Plasma Cutter > --- INVENTORY -------- (None) [Rating: 8] Favorites ----------- Power Ion Engine Engine Ion Engine Power Core Light Nuclear Core Propulsion Light Treads Treads Light Treads Leg Aluminum Leg Utility High-capacity Storage Unit Storage High-capacity Storage Unit Weapon Light Assault Rifle Ballistic Gun Light Assault Rifle Launcher Mini Grenade Launcher Special Weapon Plasma Cutter Build | -11 -10 ------- Run | Yrd Mat Slots Evolved . | . . Power . | . . Propulsion . | . . Utility . | . . Weapon . | . . Parts Attached 15 | 5 10 Power 3 | 2 1 Engine 2 | 2 . Core 1 | . 1 Reactor . | . . Propulsion 4 | 2 2 Treads 2 | 2 . Leg 2 | . 2 Wheel . | . . Hover . | . . Flight . | . . Utility 3 | . 3 Device . | . . Storage 3 | . 3 Processor . | . . Hackware . | . . Protection . | . . Artifact . | . . Weapon 5 | 1 4 Energy Gun . | . . Energy Cannon . | . . Ballistic Gun 3 | 1 2 Ballistic Cannon . | . . Launcher 1 | . 1 Special Weapon 1 | . 1 Impact Weapon . | . . Slashing Weapon . | . . Piercing Weapon . | . . Special Melee Weapon . | . . Unidentified Prototypes . | . . Parts Lost 8 | . 8 Power 1 | . 1 Propulsion 3 | . 3 Utility . | . . Weapon 4 | . 4 Highest Loss Streak 8 | . 8 To Critical Strikes . | . . Average Slot Usage (%) 76 | . 76 Engine 7 | . 7 Treads 19 | . 19 Leg 6 | . 6 Storage 16 | . 16 Ballistic Gun 25 | . 25 Naked Turns . | . . Heaviest Build 49 | 6 49 Greatest Support 40 | 40 40 Greatest Overweight (x) 15 | 1 15 Average Overweight (x) . | . . Largest Inventory Capacity 20 | 5 20 Average Capacity 13 | 5 15 Most Carried 5 | 5 5 Average Carried 3 | 4 3 Final Capacity 20 | 5 20 Final Carried 5 | 5 . Class Distribution -------------------- 100% | Mutant Dominant Class ---------------- Mutant | -10/Materials Resources | -11 -10 ----------- Run | Yrd Mat Matter Collected 305 | 221 84 Remotely . | . . Salvage Created 175 | . 175 Parts 6 | . 6 Haulers Intercepted . | . . Recyclers Shooed . | . . Parts Field Recycled . | . . Retrieved Matter . | . . Parts Self-Destructed . | . . Prevented . | . . Kills | -11 -10 ------- Run | Yrd Mat Combat Hostiles Destroyed 4 | . 4 Guns 4 | . 4 Classes Destroyed 1 | . 1 Grunt 4 | . 4 Best Kill Streak 2 | . 2 Combat Bots Only 2 | . 2 Max Kills in Single Turn 1 | . 1 Gunslinging . | . . Exploded . | . . Melee . | . . Uniques/NPCs Destroyed . | . . Combat | -11 -10 -------- Run | Yrd Mat Hostile Shots Fired 109 | . 109 Missed 22 | . 22 Damage Taken 1167 | . 1167 Core 258 | . 258 Absorbed by Shields . | . . Core Remaining (%) 100 | 100 . Volleys Fired 37 | . 37 Largest 2 | . 2 Hottest 40 | . 40 Shots Fired 71 | . 71 Gun 71 | . 71 Cannon . | . . Launcher . | . . Special . | . . Kinetic 71 | . 71 Thermal . | . . Explosive . | . . Electromagnetic . | . . Robot Hit Streak 10 | . 10 Robot Miss Streak 2 | . 2 Penetration Max . | . . Secondary Targets 1 | . 1 Max Gunslinging Chain 1 | . 1 Shots Hit Robots 47 | . 47 Core Hits 15 | . 15 Critical Kills . | . . Critical Parts Destroyed . | . . Critical Strikes . | . . Melee Attacks . | . . Impact . | . . Slashing . | . . Piercing . | . . Sneak Attacks . | . . Combat Hostiles . | . . Follow-up Attacks . | . . Damage Inflicted 430 | . 430 Guns 430 | . 430 Cannons . | . . Explosions . | . . Melee . | . . Ramming . | . . Kinetic 430 | . 430 Thermal . | . . Explosive . | . . Electromagnetic . | . . Impact . | . . Slashing . | . . Piercing . | . . Highest Corruption . | . . Average Corruption . | . . Corruption Purged . | . . Corruption Blocked . | . . Overload Shots . | . . Overflow Damage . | . . Projectiles . | . . Explosions . | . . Melee . | . . Knockbacks . | . . Impact . | . . Kinetic . | . . Secondary . | . . Self-Inflicted Damage . | . . Shots . | . . Rammed . | . . Targets Rammed . | . . Kicked . | . . Crushed . | . . Highest Temperature 33 | . 33 Average Temperature 9 | . 9 Received Heat Transfer 693 | . 693 Siege Activations . | . . Robots Corrupted . | . . Combat Hostiles . | . . Parts Fried . | . . Impact Corruptions . | . . Robots Melted . | . . Combat Hostiles . | . . Parts Melted . | . . Heat Transferred . | . . Parts Sabotaged . | . . Parts Stolen . | . . Parts Stripped . | . . Power Chain Reactions . | . . Alert | -11 -10 ------- Run | Yrd Mat Peak Influence 95 | . 95 Initial . | . . Average 29 | . 38 Maximum Alert Level . | . . Low Security (%) 100 | 100 100 Level 1 . | . . Level 2 . | . . Level 3 . | . . Level 4 . | . . Level 5 . | . . High Security . | . . Max Security . | . . Squads Dispatched 1 | . 1 Investigation . | . . Extermination . | . . Reinforcement 1 | . 1 Assault . | . . Garrison . | . . Intercept . | . . Searches Triggered . | . . Construction Impeded . | . . Haulers Reinforced . | . . Active Scanning Responses . | . . Cargo Convoy Interrupts . | . . Stealth | -11 -10 --------- Run | Yrd Mat Distress Signals 1 | . 1 Communications Jammed . | . . Distress Signals . | . . Times Spotted 10 | . 10 Peak Tracking Total 7 | . 7 Tactical Retreats . | . . Traps | -11 -10 ------- Run | Yrd Mat Traps Triggered . | . . Indirectly . | . . Trap Hack Attempts . | . . Triggered . | . . Disarmed . | . . Reprogrammed . | . . Reused . | . . Traps Extracted . | . . Installed . | . . Triggered . | . . Machines | -11 -10 ---------- Run | Yrd Mat Machines Disabled . | . . Max in Single Turn . | . . Machines Repaired . | . . Machines Dismantled . | . . Machines Sabotaged . | . . Overloaded Fab Kills . | . . Hacking | -11 -10 --------- Run | Yrd Mat Machines Accessed . | . . Terminals . | . . Fabricators . | . . Repair Stations . | . . Recycling Units . | . . Scanalyzers . | . . Garrison Access . | . . Total Hacks . | . . Successful . | . . Failed . | . . Catastrophic . | . . Database Lockouts . | . . Manual . | . . Terminals . | . . Fabricators . | . . Repair Stations . | . . Recycling Units . | . . Scanalyzers . | . . Garrison Access . | . . Terminal Hacks . | . . Fabricator Hacks . | . . Repair Station Hacks . | . . Recycling Unit Hacks . | . . Scanalyzer . | . . Garrison Access Hacks . | . . Unauthorized Hacks . | . . Terminals . | . . Fabricators . | . . Repair Stations . | . . Recycling Units . | . . Scanalyzers . | . . Garrison Access . | . . Data Cores Recovered . | . . Used . | . . Hacking Detections . | . . Full Trace Events . | . . Feedback Events . | . . Feedback Blocked . | . . Robot Schematics Acquired . | . . Robots Built . | . . Authchips . | . . Time . | . . Total Robot Build Rating . | . . Part Schematics Acquired . | . . Parts Built . | . . Authchips . | . . Time . | . . Total Part Build Rating . | . . Parts Repaired . | . . Time . | . . Parts Recycled . | . . Recycled Matter . | . . Retrieved Matter . | . . Retrieved Components . | . . Parts Scanalyzed . | . . Part Schematics Acquired . | . . Parts Damaged . | . . Bothacking | -11 -10 ------------ Run | Yrd Mat Used RIF Installer . | . . Robots Hacked . | . . Non-combat . | . . Combat . | . . Robot Hacks Applied . | . . Relay Couplers Released . | . . Fabnet Peak Effective % . | . . Robots Rewired . | . . Allies Hacked . | . . Hacks Repelled . | . . Allies | -11 -10 -------- Run | Yrd Mat Total Allies . | . . Largest Group . | . . Highest-Rated Group . | . . Highest-Rated Ally . | . . Total Orders . | . . Ally Attacks . | . . Total Damage . | . . Kills . | . . Allies Corrupted . | . . Allies Melted . | . . Intel | -11 -10 ------- Run | Yrd Mat Robot Analysis Total . | . . Derelict Logs Recovered . | . . Drone Launches . | . . Drone Recoveries . | . . Exploration | -11 -10 ------------- Run | Yrd Mat Turns Passed 255 | 60 195 Spaces Moved 84 | 41 43 Core 17 | 16 1 Treads 59 | 25 34 Legs 8 | . 8 Wheels . | . . Hover . | . . Flight . | . . Fastest Speed 50 | 50 160 Average Speed 166 | 118 212 Slowest Speed 800 | 160 800 Overloaded Moves . | . . Propulsion Burnouts . | . . Robots Hopped . | . . Cave-ins Triggered . | . . Exploration Rate (%) 11 | 4 18 Regions Visited 1 Branch Regions . Pre-discovered Areas . | . . Known Exits Taken . | . . Unknown Exits Taken 1 | 1 . Scrap Searched . | . . Spaces Dug . | . . Terrain Destroyed . | . . Melee . | . . Projectile . | . . AOE . | . . Terrain Rammed . | . . Walls Destroyed . | . . Machines Disabled . | . . Actions | -11 -10 --------- Run | Yrd Mat Total 148 | 51 97 Wait . | . . Move 83 | 40 43 Hop . | . . Pick Up 9 | 5 4 Fast Attach 5 | 4 1 Attach 8 | . 8 Detach . | . . Swap 2 | 1 1 Drop 4 | 1 3 Fire 37 | . 37 Melee . | . . Ram . | . . Kick . | . . Crush . | . . Escape Stasis . | . . Rewire . | . . Trap . | . . Miscellaneous . | . . Route ------- -11/Scrapyard -10/Materials History --------- Turn | Location | Event 19 | -11/Scrapyard | Discovered new exit (range 15) 61 | -11/Scrapyard | Entered Materials 211 | -10/Materials | Core integrity fell below 50% 239 | -10/Materials | Core integrity fell below 20% 256 | -10/Materials | Destroyed by G-34 Mercenary with Small Laser Last Messages --------------- K-01 Serf collects debris. Acquired 36 matter. Acquired 48 matter. K-01 Serf collects debris. Acquired Lgt. Nuclear Core. K-01 Serf collects debris. Critical hit (Burn: +37). K-01 Serf collects debris. Lgt. Assault Rifle destroyed. K-01 Serf collects debris. Aluminum Leg destroyed. Lgt. Assault Rifle destroyed. K-01 Serf collects debris. Plasma Cutter destroyed. R-06 Scavenger collects Lgt. Treads. K-01 Serf collects debris. Aluminum Leg destroyed. K-01 Serf collects debris. R-06 Scavenger collects Aluminum Leg. K-01 Serf collects debris. Map ----- +----------------------------------------------------+ | ?????????????????????????????????????????????????? | | ?????????????????????????????????????????????????? | | ?????????????????????????????????????????????????? | | ?????????????????????????????????????????????????? | | ?????????????????????????????????????????????????? | | ?????????????????????????????????????????????????? | | ?????????????????????????????????????????????????? | | ?????????????????????????????????????????????????? | | ?????????????????????????????????????????????????? | | ?????????????????????????????????????????????????? | | ?????????????????????????????????????????????????? | | ?????????????????????????????????????????????????? | | ?????????????????????????????????????????????????? | | ?????????????????????????????????????????????????? | | ?????????????????#######?????????????????????????? | | ?????????????????# #?????????????????????????? | | ?????????????????# T" #?????????????????????????? | | ?????????????????# " #######???????????????????? | | ?????###?????????? # #???????????????????? | | ?????? ??#?????? # #???????????????????? | | ??????? ?# ?????# ##""" #???????????????????? | | ????????! # ?????# ##""" #???????????????????? | | ????????? # ###### ##""" #???????????????????? | | ????????? + ## #???????????????????? | | ???????????# ## ?????????????????????? | | ???????????# ##@########T#?????????????? | | ???????????# ! % g ?????????? | | ??????###### !!* % u ?????????? | | ! = k g g ?????????? | | !! #T############# ??????????? | | ########### ####???????????????????????? | | ?###### ??????? #a#??????????????????????????? | | ??????????????? # #??????????????????????????? | | ??????????????""""" # #??????????????????????????? | | ??????????????""""" # #??????????????????????????? | | ??????????????""""" # #####??????????????????????? | | ?????????????"""""" # ||#??????????????????????? | | ?????????????"""""" / |#??????????????????????? | | ??????????# # ==#??????????????????????? | | ????????######+###### ==#??????????????????????? | | ????????# ]#??????????????????????? | | ????????# ]]#??????????????????????? | | ????????# """ [[ #####??????????????????????? | | ????????# "T" [[ #??????????????????????????? | | ????????# [ #??????????????????????????? | | ????????# #??????????????????????????? | | ????????# ! #??????????????????????????? | | ????????# +??????????????????????????? | | ????????###+## ######??????????????????????????? | | ?????????????# #???????????????????????????????? | +----------------------------------------------------+ Best States ------------- Heat Dissipation 25 Energy Generation 14 Energy Capacity 250 Matter Stores 271 Matter Capacity 450 Sight Range 16 Terrain Scan Density 10 Evasion (%) 50 Recoil Reduction 2 Item Schematics ----------------- None Robot Schematics ------------------ None Fabricated ------------ Nothing Alien Tech Used ----------------- None Achievements -------------- None Challenges ------------ None Game ------ Seed ConcussiveSalvageCasing Manual? 0 Play Time 00:04:15 Cumulative 5.0 hours Start 2024.07.12 @ 16:45:47 End 2024.07.12 @ 16:49:58 Sessions 1 Manual Loads 0 Difficulty Rogue Special Mode None Game No. 7 Rogue 7 Adventurer 0 Explorer 0 Win Type - Total 0 Types 0/0/0/0/0/0/0/0/0 Lore% 10 Gallery% 5 Achievement% 7 Wizard Run 0 Options --------- Layout 0 ASCII 0 Keyboard 0 Movement Mouse Keybinds 0 Fullscreen 2 Font 18/Smallcaps Map View 38x25 Zoom Use 100% Tactical HUD 0 Map Filters NONE Filters NONE Steam 1 RUN: f092216a-f86e-4b19-8e16-cb6250633313